bitfinex-derivatives/quotes_BNBF0:USTF0_20250101
["timestamp","ask_amount","ask_price","bid_price","bid_amount"]
[1735744100800,0.25975438,709.24,708.25,1.05843221]
[1735744101006,0.25975438,709.23,708.25,1.05843221]
[1735744101204,0.28198403,709.26,708.25,1.05843221]
[1735744101509,1.47332769,709.24,708.25,1.05843221]
[1735744101700,0.25975718,709.23,708.25,1.05843221]
[1735744102203,1.47332769,709.24,708.25,1.05843221]
[1735744102504,0.25975956,709.23,708.16,1.05843221]
[1735744103308,1.30175748,709.23,708.15,1.05843221]
[1735744103503,0.25975956,709.22,708.15,1.05843221]
[1735744104207,1.04199792,709.23,708.15,1.05843221]
[1735744104910,0.25975383,709.22,708.14,1.05843221]
[1735744105201,0.25975383,709.21,708.14,1.05843221]
[1735744105402,0.25975383,709.2,708.14,1.05843221]
[1735744105611,0.25975383,709.19,708.14,1.05843221]
[1735744105809,2.51532561,709.24,708.19,1.05843221]
[1735744106004,0.25975394,709.23,708.19,1.05843221]
[1735744106504,0.25975394,709.23,708.17,1.05843221]
[1735744107607,0.25975394,709.23,708.19,1.05843221]
[1735744108903,0.25975394,709.23,708.18,1.05843221]
[1735744110108,1.30175186,709.23,708.16,1.05843221]
[1735744110307,0.2597573,709.22,708.16,1.05843221]
[1735744111209,1.04199792,709.21,708.19,1.05843221]
[1735744111503,0.2597573,709.2,708.19,1.05843221]
[1735744112302,1.04199792,709.19,708.19,1.05843221]
[1735744112506,0.2597573,709.18,708.19,1.05843221]
[1735744112807,1.04199792,709.19,708.19,1.05843221]
[1735744113006,0.25975706,709.18,708.19,1.05843221]
[1735744113803,0.25975706,709.17,708.19,1.05843221]
[1735744114012,0.25975706,709.16,708.19,1.05843221]
[1735744114206,0.25975706,709.15,708.19,1.05843221]
[1735744114413,1.04199792,709.21,708.19,1.05843221]
[1735744114711,0.25975106,709.2,708.2,1.05843221]
[1735744114909,0.25975106,709.19,708.2,1.05843221]
[1735744115109,0.25975106,709.18,708.2,1.05843221]
[1735744115310,0.25975106,709.17,708.2,1.05843221]
[1735744115612,0.25974946,709.16,708.2,1.05843221]
[1735744115808,0.25974946,709.15,708.2,1.05843221]
[1735744116009,2.51532561,709.24,708.21,1.05843221]
[1735744116208,1.30174896,709.23,708.21,1.05843221]
[1735744116411,0.25975104,709.22,708.21,1.05843221]
[1735744117112,0.25975104,709.22,708.19,1.05843221]
[1735744117313,0.25975104,709.21,708.19,1.05843221]
[1735744117514,0.25975104,709.2,708.19,1.05843221]
[1735744117726,0.25975104,709.19,708.19,1.05843221]
[1735744117912,0.25975104,709.18,708.19,1.05843221]
[1735744118108,0.25975104,709.17,708.19,1.05843221]
[1735744118409,2.51532561,709.24,708.19,1.05843221]
[1735744118410,0.25975194,709.16,708.19,1.05843221]
[1735744118615,1.04199792,709.23,708.19,1.05843221]
[1735744118814,0.25975194,709.22,708.19,1.05843221]
[1735744119917,0.25975194,709.21,708.19,1.05843221]
[1735744120219,0.25975194,709.2,708.19,1.05843221]
[1735744120420,0.25975194,709.19,708.19,1.05843221]
[1735744120620,0.25975194,709.18,708.19,1.05843221]
[1735744120816,1.04199792,709.22,708.18,1.05843221]
[1735744121020,0.25975918,709.21,708.18,1.05843221]
[1735744122220,1.3017571,709.21,708.16,1.05843221]
[1735744122414,0.25975918,709.2,708.16,1.05843221]
[1735744123323,1.04199792,709.18,708.16,1.05843221]
[1735744123621,0.25976588,709.17,708.16,1.05843221]
[1735744124420,1.04199792,709.19,708.16,1.05843221]
[1735744124421,0.2597603,709.16,708.16,1.05843221]
[1735744124622,0.2597603,709.15,708.16,1.05843221]
[1735744124821,0.2597603,709.14,708.16,1.05843221]
[1735744125018,0.2597603,709.13,708.19,1.05843221]
[1735744125219,0.2597603,709.12,708.19,1.05843221]
[1735744125423,0.2597603,709.11,708.19,1.05843221]
[1735744125623,1.04199792,709.18,708.19,1.05843221]
[1735744125825,0.25976292,709.17,708.19,1.05843221]
[1735744126125,1.30176084,709.17,708.19,1.05843221]
[1735744126325,0.25976292,709.16,708.19,1.05843221]
[1735744127026,0.25976292,709.16,707.92,0.28251779]
[1735744127027,0.25976292,709.16,708.15,1.05843221]
[1735744128025,0.25976292,709.16,707.94,1.04623944]
[1735744128026,0.25976292,709.16,708.16,1.05843221]
[1735744128926,1.04199792,709.17,708.18,1.05843221]
[1735744130128,1.04199792,709.17,708.16,1.05843221]
[1735744130829,1.47357724,709.16,708.16,1.05843221]
[1735744131226,1.04199792,709.14,708.16,1.05843221]
[1735744132225,2.51557516,709.16,708.0,1.05843221]
[1735744132431,0.25980111,709.15,708.0,1.05843221]
[1735744132630,2.51557516,709.16,708.0,1.05843221]
[1735744133630,0.25980012,709.15,708.0,1.05843221]
[1735744134537,0.25980012,709.15,707.99,1.05843221]
[1735744134931,1.47357724,709.16,707.99,1.05843221]
[1735744135124,0.25980914,709.15,707.99,1.05843221]
[1735744135827,1.04199792,709.14,707.99,1.05843221]
[1735744136028,0.25980914,709.13,707.99,1.05843221]
[1735744136925,0.25980914,709.13,707.96,1.05843221]
[1735744137130,0.25980914,709.12,707.96,1.05843221]
[1735744137326,1.47357724,709.16,707.96,1.05843221]
[1735744137831,0.25981185,709.15,707.96,1.05843221]
[1735744138327,0.25981185,709.15,707.94,1.05843221]
[1735744139132,1.04199792,709.03,707.92,0.28251779]
[1735744139336,0.25981185,709.02,707.92,0.28251779]
[1735744139632,1.04199792,709.03,707.92,0.28251779]
[1735744140229,1.04199792,709.06,707.92,0.28251779]
[1735744141230,1.04199792,709.04,707.92,0.28251779]
[1735744142632,1.04199792,709.01,707.92,0.28251779]
[1735744143737,1.04199792,709.04,707.92,0.28251779]
[1735744144241,0.28207551,709.03,707.77,1.05843221]
[1735744144941,0.28207551,709.03,707.75,1.05843221]
[1735744145947,1.04199792,708.97,707.67,1.05843221]
[1735744147037,0.28207551,709.03,707.6,1.05843221]
[1735744147038,1.04199792,709.02,707.6,1.05843221]
[1735744147445,0.28208346,709.01,707.6,1.05843221]
[1735744148242,0.28208346,709.01,707.57,1.05843221]
[1735744149736,0.28208346,709.01,700.95,5.3182283]
[1735744149737,0.28208346,709.01,707.55,1.05843221]
[1735744151339,0.28208346,709.01,707.51,1.05843221]
[1735744151937,0.28208346,709.01,707.5,1.05843221]
[1735744153240,0.28208346,709.01,707.39,1.05843221]
[1735744153440,0.28208346,709.01,707.4,0.28272547]
[1735744155440,0.28208346,709.01,707.45,1.05843221]
[1735744155842,0.28208346,709.01,707.46,0.28270149]
[1735744163339,0.28208346,709.01,707.48,1.05843221]
[1735744163747,0.28208346,709.01,707.49,0.2826895]
[1735744164647,0.28208346,709.01,707.49,1.34112171]
[1735744165442,0.28208346,709.01,707.58,1.05843221]
[1735744165846,0.28208346,709.01,707.59,0.28264955]
[1735744166647,0.28208346,709.01,707.61,1.05843221]
[1735744167751,0.28208346,709.01,707.65,1.05843221]
[1735744169052,0.28208346,709.01,707.74,1.05843221]
[1735744170048,0.28208346,709.01,707.77,1.05843221]
[1735744171154,0.28208346,709.01,707.7,1.05843221]
[1735744172153,0.28208346,709.01,707.78,1.05843221]
[1735744173756,0.28208346,709.01,707.77,1.05843221]
[1735744174950,0.28208346,709.01,707.76,1.05843221]
[1735744176053,0.28208346,709.01,707.75,1.05843221]
[1735744177658,0.28208346,709.01,707.77,1.05843221]
[1735744178359,0.28208346,709.01,707.8,1.05843221]
[1735744179259,0.28208346,709.01,707.78,1.05843221]
[1735744179959,0.28208346,709.01,707.79,0.28256968]
[1735744180664,0.28208346,709.01,707.88,1.05843221]
[1735744183261,0.28208346,709.01,707.94,1.05843221]
[1735744184261,0.28208346,709.01,707.79,0.28256968]
[1735744184262,0.28208346,709.01,707.95,1.05843221]
[1735744185154,0.28208346,709.01,707.84,1.05843221]
[1735744186360,0.28208346,709.01,707.83,1.05843221]
[1735744187363,0.28208346,709.01,707.83,1.34098593]
[1735744187670,0.28208346,709.01,707.84,1.05843221]
[1735744189166,0.28208346,709.01,707.85,1.05843221]
[1735744190360,0.28208346,709.01,707.84,1.05843221]
[1735744191366,0.28208346,709.01,707.83,1.34098593]
[1735744192360,0.28208346,709.01,707.87,1.05843221]
[1735744193467,0.28208346,709.01,707.86,1.05843221]
[1735744193661,0.28208346,709.01,707.87,0.28253775]
[1735744194667,0.28208346,709.01,707.99,1.05843221]
[1735744195064,2.51564276,709.26,707.99,1.05843221]
[1735744196064,1.47364484,709.26,708.06,1.05843221]
[1735744197167,1.47364484,709.26,707.87,0.28253775]
[1735744197168,1.47364484,709.26,708.03,1.05843221]
[1735744198466,1.47364484,709.26,708.02,1.05843221]
[1735744199667,1.47364484,709.26,707.96,1.05843221]
[1735744200768,0.28198801,709.25,707.96,1.05843221]
[1735744201863,1.04199792,709.17,707.92,1.05843221]
[1735744203265,1.04199792,709.15,707.93,1.05843221]
[1735744203763,0.25981322,709.14,707.93,1.05843221]
[1735744203969,0.25981322,709.14,708.0,1.05843221]
[1735744204180,1.04199792,709.23,708.0,1.05843221]
[1735744204376,1.47352524,709.19,708.0,1.05843221]
[1735744204570,0.25977657,709.18,708.0,1.05843221]
[1735744205066,0.25977657,709.18,708.02,1.05843221]
[1735744206473,0.25977657,709.18,707.87,0.28253775]
[1735744206474,0.25977657,709.18,708.04,1.05843221]
[1735744206878,1.47352524,709.19,708.04,1.05843221]
[1735744207677,0.25980431,709.18,708.02,1.05843221]
[1735744208775,1.04199792,709.16,707.99,1.05843221]
[1735744208974,0.25980431,709.15,707.99,1.05843221]
[1735744209780,0.2598393,709.14,707.99,1.05843221]
[1735744209984,1.04199792,708.97,708.01,1.05843221]
[1735744210279,0.2598393,708.96,708.01,1.05843221]
[1735744211076,1.04199792,708.93,707.98,1.05843221]
[1735744211277,0.25984461,708.92,707.98,1.05843221]
[1735744212180,2.08065919,709.19,707.97,1.05843221]
[1735744212181,1.04199792,708.94,707.97,1.05843221]
[1735744212778,0.25984469,708.93,707.97,1.05843221]
[1735744213380,0.25984469,708.93,707.96,1.05843221]
[1735744213680,0.25984469,708.92,707.96,1.05843221]
[1735744213879,0.25984469,708.91,707.96,1.05843221]
[1735744214080,0.25984469,708.9,707.96,1.05843221]
[1735744214288,0.25984469,708.89,707.96,1.05843221]
[1735744214581,0.25984469,708.88,707.95,1.05843221]
[1735744214779,0.25984469,708.87,707.95,1.05843221]
[1735744214978,0.25984469,708.86,707.95,1.05843221]
[1735744215180,0.25984469,708.85,707.95,1.05843221]
[1735744215384,0.25984469,708.84,707.95,1.05843221]
[1735744215681,2.51592883,708.96,707.95,1.05843221]
[1735744215885,0.25984094,708.95,707.95,1.05843221]
[1735744217087,0.25984094,708.95,707.94,1.05843221]
[1735744217681,1.04199792,708.99,707.94,1.05843221]
[1735744217883,0.259822,708.98,707.94,1.05843221]
[1735744218492,0.259822,708.98,707.97,1.05843221]
[1735744218687,0.259822,708.97,707.97,1.05843221]
[1735744218888,0.259822,708.96,707.97,1.05843221]
[1735744219188,0.259822,708.95,707.99,1.05843221]
[1735744219390,0.259822,708.94,707.99,1.05843221]
[1735744219588,0.259822,708.93,707.99,1.05843221]
[1735744219787,0.259822,708.92,707.99,1.05843221]
[1735744220088,0.259822,708.92,707.87,0.28253775]
[1735744220089,1.04199792,709.04,707.97,1.05843221]
[1735744220286,0.25981699,709.03,707.97,1.05843221]
[1735744221090,0.25981699,709.03,708.0,1.05843221]
[1735744221283,1.47383207,709.06,708.0,1.05843221]
[1735744222389,1.47383207,709.06,707.87,0.28253775]
[1735744225188,0.25984759,709.05,707.87,0.28253775]
[1735744227701,1.04199792,709.03,707.89,1.05843221]
[1735744227991,0.25984759,709.02,707.89,1.05843221]
[1735744228692,1.04199792,708.98,707.87,0.28253775]
[1735744228895,0.25984759,708.97,707.87,0.28253775]
[1735744229504,1.47397773,708.96,707.87,0.28253775]
[1735744229797,0.25984759,708.95,707.87,0.28253775]
[1735744230791,0.25985739,708.94,707.87,0.28253775]
[1735744230996,0.25985739,708.93,707.87,0.28253775]
[1735744231296,0.25985739,708.92,707.87,0.28253775]
[1735744231492,0.25985167,708.91,707.87,0.28253775]
[1735744231698,0.25985167,708.9,707.87,0.28253775]
[1735744231897,0.25985167,708.89,707.87,0.28253775]
[1735744232101,0.25985167,708.88,707.88,1.05843221]
[1735744232394,0.25985167,708.87,707.88,1.05843221]
[1735744232597,1.47397773,708.96,707.88,1.05843221]
[1735744232799,0.25985411,708.95,707.88,1.05843221]
[1735744233100,0.25985411,708.95,707.87,0.28253775]
[1735744233497,1.47397773,708.96,707.87,0.28253775]
[1735744233698,0.25985104,708.95,707.87,0.28253775]
[1735744234499,0.25985104,708.95,707.87,1.34096996]
[1735744236998,0.25985104,708.94,707.87,1.34096996]
[1735744237294,0.25985104,708.93,707.87,1.34096996]
[1735744237498,0.25985104,708.92,707.87,1.34096996]
[1735744237798,0.25985104,708.91,707.87,1.34096996]
[1735744237995,0.25985104,708.9,707.87,1.34096996]
[1735744238195,0.25985104,708.89,707.87,1.34096996]
[1735744238500,1.04199792,709.02,707.89,1.05843221]
[1735744238903,0.25985061,709.01,707.89,1.05843221]
[1735744239903,1.04199792,708.99,707.87,0.28253775]
[1735744240202,0.25985061,708.98,707.87,0.28253775]
[1735744241206,1.04199792,708.96,707.87,0.28253775]
[1735744241404,0.25985061,708.95,707.87,0.28253775]
[1735744241606,0.25986621,708.94,707.87,0.28253775]
[1735744241805,0.25986621,708.93,707.87,0.28253775]
[1735744242001,0.25986621,708.92,707.87,0.28253775]
[1735744242203,0.25986621,708.91,707.87,0.28253775]
[1735744242407,0.25986621,708.9,707.88,1.05843221]
[1735744243607,1.04199792,708.89,707.9,1.05843221]
[1735744243807,0.25986621,708.88,707.9,1.05843221]
[1735744244201,0.25985906,708.87,707.9,1.05843221]
[1735744244405,0.25985906,708.86,707.9,1.05843221]
[1735744244707,0.25986136,708.85,707.93,1.05843221]
[1735744244906,0.25986136,708.84,707.93,1.05843221]
[1735744245105,1.04199792,708.91,707.93,1.05843221]
[1735744245303,0.25985679,708.9,707.93,1.05843221]
[1735744245909,1.30185471,708.9,707.95,1.05843221]
[1735744246109,0.25985679,708.89,707.95,1.05843221]
[1735744246915,0.25986381,708.88,707.95,1.05843221]
[1735744247105,0.25986381,708.87,707.92,1.05843221]
[1735744247507,1.04199792,708.88,707.92,1.05843221]
[1735744247705,0.25986472,708.87,707.92,1.05843221]
[1735744249507,1.04199792,708.84,707.96,1.05843221]
[1735744249702,0.25986488,708.83,707.96,1.05843221]
[1735744252211,1.04199792,708.84,707.96,1.05843221]
[1735744252405,0.25986543,708.83,707.96,1.05843221]
[1735744254214,1.04199792,708.81,707.91,1.05843221]
[1735744254410,0.25986543,708.8,707.91,1.05843221]
[1735744254809,0.2598813,708.79,707.91,1.05843221]
[1735744255013,0.2598813,708.78,707.91,1.05843221]
[1735744255216,0.2598813,708.77,707.91,1.05843221]
[1735744255515,1.47397773,708.97,707.91,1.05843221]
[1735744255516,1.04199792,708.8,707.91,1.05843221]
[1735744255717,0.25987144,708.79,707.91,1.05843221]
[1735744256609,1.04199792,708.8,707.91,1.05843221]
[1735744257113,1.04199792,708.8,707.87,0.28253775]
[1735744257114,1.04199792,708.82,707.96,1.05843221]
[1735744257711,0.2598719,708.81,707.96,1.05843221]
[1735744258014,1.04199792,708.82,707.96,1.05843221]
[1735744258210,1.04199792,708.84,707.94,1.05843221]
[1735744258416,0.25987106,708.83,707.94,1.05843221]
[1735744259414,0.25987106,708.83,707.87,0.28253775]
[1735744259415,0.25987106,708.83,707.93,1.05843221]
[1735744260215,0.25987436,708.82,707.93,1.05843221]
[1735744260516,1.04199792,708.83,707.91,1.05843221]
[1735744260712,0.25989004,708.82,707.91,1.05843221]
[1735744261621,0.25989004,708.82,707.87,0.28253775]
[1735744261817,1.04199792,708.83,707.87,0.28253775]
[1735744262116,1.04199792,708.83,707.83,1.05843221]
[1735744262518,0.2599202,708.82,707.83,1.05843221]
[1735744262716,1.04199792,708.78,707.79,1.05843221]
[1735744263121,0.2599244,708.77,707.79,1.05843221]
[1735744264116,1.04199792,708.72,707.67,1.05843221]
[1735744264316,0.2599244,708.71,707.67,1.05843221]
[1735744264716,0.25994494,708.7,707.67,1.05843221]
[1735744264916,0.25994494,708.69,707.67,1.05843221]
[1735744265127,0.25994494,708.68,707.67,1.05843221]
[1735744265317,0.25994494,708.67,707.67,1.05843221]
[1735744265510,0.25994494,708.66,707.67,1.05843221]
[1735744265716,0.25994494,708.66,707.05,2.1360722]
[1735744265717,0.25994494,708.65,707.63,1.05843221]
[1735744265916,0.25994494,708.64,707.63,1.05843221]
[1735744266110,0.25994494,708.63,707.63,1.05843221]
[1735744266317,1.04199792,708.74,707.63,1.05843221]
[1735744266617,0.25994745,708.73,707.6,1.05843221]
[1735744266812,0.25994745,708.72,707.6,1.05843221]
[1735744267015,0.25994745,708.71,707.6,1.05843221]
[1735744267219,1.04199792,708.79,707.58,1.05843221]
[1735744267418,0.25994607,708.78,707.58,1.05843221]
[1735744268519,1.47445132,708.77,707.58,1.05843221]
[1735744268721,0.25994607,708.76,707.58,1.05843221]
[1735744269820,0.25994693,708.75,707.58,1.05843221]
[1735744270016,0.25994693,708.74,707.56,1.05843221]
[1735744270217,0.25994693,708.73,707.56,1.05843221]
[1735744270413,1.47445132,708.77,707.56,1.05843221]
[1735744270619,0.25994116,708.76,707.56,1.05843221]
[1735744271018,0.25994116,708.76,707.52,1.05843221]
[1735744271921,0.25994116,708.76,707.54,1.05843221]
[1735744272521,0.25994867,708.75,707.54,1.05843221]
[1735744272716,0.25994867,708.74,707.54,1.05843221]
[1735744272924,0.25994867,708.73,707.54,1.05843221]
[1735744273122,0.25994867,708.72,707.54,1.05843221]
[1735744273321,0.25994867,708.71,707.53,1.05843221]
[1735744273522,0.25994867,708.7,707.53,1.05843221]
[1735744273723,0.25994867,708.69,707.53,1.05843221]
[1735744274028,0.25994867,708.68,707.53,1.05843221]
[1735744274325,0.25994867,708.67,707.53,1.05843221]
[1735744274625,0.25994867,708.66,707.56,1.05843221]
[1735744274819,0.25994867,708.65,707.56,1.05843221]
[1735744275024,0.25994867,708.64,707.56,1.05843221]
[1735744275324,0.25997773,708.63,707.56,1.05843221]
[1735744275526,0.25997773,708.62,707.56,1.05843221]
[1735744275724,0.25997773,708.61,707.42,1.05843221]
[1735744275918,2.51644924,708.77,707.42,1.05843221]
[1735744275919,0.25997773,708.6,707.42,1.05843221]
[1735744276130,0.25997773,708.59,707.42,1.05843221]
[1735744276328,0.25997773,708.58,707.42,1.05843221]
[1735744276519,0.25997773,708.57,707.42,1.05843221]
[1735744276718,2.51644924,708.77,707.42,1.05843221]
[1735744276923,0.25997226,708.76,707.42,1.05843221]
[1735744277121,0.25997226,708.76,707.38,1.05843221]
[1735744277720,0.2599716,708.75,707.38,1.05843221]
[1735744277919,0.2599716,708.74,707.38,1.05843221]
[1735744278125,1.47445132,708.77,707.16,1.04623944]
[1735744278126,0.2599716,708.73,707.39,1.05843221]
[1735744278327,0.2599716,708.72,707.39,1.05843221]
[1735744278626,0.25995884,708.71,707.39,1.05843221]
[1735744278825,0.25995884,708.7,707.39,1.05843221]
[1735744279029,0.25995884,708.69,707.39,1.05843221]
[1735744279327,0.25995884,708.68,707.42,1.05843221]
[1735744279521,0.25995884,708.67,707.42,1.05843221]
[1735744280824,0.25995884,708.67,707.4,1.05843221]
[1735744283028,1.47463355,708.68,707.4,1.05843221]
[1735744283325,0.25997313,708.67,707.39,1.05843221]
[1735744284623,1.47463355,708.68,707.39,1.05843221]
[1735744284929,0.2822188,708.67,707.39,1.05843221]
[1735744285729,0.2822188,708.67,706.75,1.05843221]
[1735744285924,0.2822188,708.67,706.77,0.28297748]
[1735744287232,0.26008464,708.66,706.77,0.28297748]
[1735744288040,0.28222676,708.65,706.77,0.28297748]
[1735744288231,0.26008464,708.64,706.77,0.28297748]
[1735744288531,0.54231896,708.63,706.77,0.28297748]
[1735744288729,0.28223871,708.62,706.77,0.28297748]
[1735744290236,0.26009004,708.61,706.77,0.28297748]
[1735744290627,0.28223871,708.62,706.77,0.28297748]
[1735744290828,1.47534207,708.6,706.77,0.28297748]
[1735744291029,0.28225066,708.59,706.77,0.28297748]
[1735744292336,0.26010042,708.58,706.77,0.28297748]
[1735744293633,0.28225066,708.59,706.77,0.28297748]
[1735744294433,0.26009225,708.58,706.77,0.28297748]
[1735744295243,0.26009225,708.58,706.81,1.05843221]
[1735744295933,0.26009225,708.58,706.83,0.28295346]
[1735744296335,0.54235197,708.57,706.83,0.28295346]
[1735744296532,0.26009334,708.56,706.83,0.28295346]
[1735744298735,0.2822666,708.55,706.83,0.28295346]
[1735744298933,0.26010831,708.54,706.83,0.28295346]
[1735744299938,0.28227456,708.53,706.83,0.28295346]
[1735744300139,0.26010831,708.52,706.83,0.28295346]
[1735744300340,0.28228253,708.51,706.83,0.28295346]
[1735744300543,0.26010831,708.5,706.83,0.28295346]
[1735744301241,1.47549846,708.49,706.83,0.28295346]
[1735744301745,0.26011255,708.48,706.83,0.28295346]
[1735744303635,0.28229847,708.47,706.83,0.28295346]
[1735744303941,0.26011255,708.46,706.83,0.28295346]
[1735744304543,0.28230644,708.45,706.83,0.28295346]
[1735744304845,0.26010659,708.44,706.83,0.28295346]
[1735744305139,0.28231441,708.43,706.83,0.28295346]
[1735744305342,0.26010659,708.42,706.83,0.28295346]
[1735744307042,0.26011141,708.41,706.83,0.28295346]
[1735744307344,0.28231441,708.43,706.83,0.28295346]
[1735744307345,0.26011141,708.4,706.83,0.28295346]
[1735744307542,0.26011141,708.39,706.83,0.28295346]
[1735744307743,0.26011141,708.38,706.83,0.28295346]
[1735744307941,0.28231441,708.43,706.83,0.28295346]
[1735744307942,0.26011141,708.37,706.83,0.28295346]
[1735744308144,0.26011141,708.36,706.83,0.28295346]
[1735744308445,0.26011141,708.35,706.83,0.28295346]
[1735744308640,0.26011141,708.34,706.83,0.28295346]
[1735744308843,0.26011141,708.33,706.83,0.28295346]
[1735744309044,0.28231441,708.43,706.83,0.28295346]
[1735744309341,0.26009971,708.42,706.83,0.28295346]
[1735744310342,0.26009971,708.42,706.84,1.05843221]
[1735744310740,0.26009971,708.42,706.85,0.28294546]
[1735744311357,1.47545154,708.41,706.99,1.05843221]
[1735744311550,0.26009971,708.4,707.0,0.28288543]
[1735744312352,0.26009493,708.39,707.0,0.28288543]
[1735744312546,0.26009493,708.38,707.0,0.28288543]
[1735744312747,0.26009493,708.37,707.0,0.28288543]
[1735744312947,0.26009493,708.36,707.0,0.28288543]
[1735744313148,0.26009493,708.35,707.0,0.28288543]
[1735744313346,0.26009493,708.34,707.0,0.28288543]
[1735744313549,0.26009493,708.33,707.0,0.28288543]
[1735744313852,0.26009493,708.32,707.0,0.28288543]
[1735744314063,0.26009493,708.31,707.0,0.28288543]
[1735744314352,1.47545154,708.41,707.0,0.28288543]
[1735744314551,0.26009043,708.4,707.0,0.28288543]
[1735744315050,0.26009043,708.39,707.0,0.28288543]
[1735744315250,0.26009043,708.38,707.0,0.28288543]
[1735744315447,0.26009043,708.37,707.0,0.28288543]
[1735744315650,0.26009043,708.36,707.0,0.28288543]
[1735744315948,0.26009043,708.35,707.0,0.28288543]
[1735744316145,0.26009043,708.34,707.0,0.28288543]
[1735744316352,1.47545154,708.41,707.02,1.05843221]
[1735744317155,0.2600522,708.4,707.02,1.05843221]
[1735744317351,0.2600522,708.4,707.19,1.05843221]
[1735744318147,1.47545154,708.41,707.19,1.05843221]
[1735744318351,0.26005821,708.4,707.19,1.05843221]
[1735744320155,0.26005821,708.4,707.24,1.05843221]
[1735744320356,0.26005937,708.39,707.24,1.05843221]
[1735744320555,1.47545154,708.41,707.24,1.05843221]
[1735744320853,0.26005937,708.4,707.24,1.05843221]
[1735744321058,0.26005937,708.4,707.31,1.05843221]
[1735744322055,0.26006186,708.39,707.3,1.05843221]
[1735744322253,1.47545154,708.41,707.3,1.05843221]
[1735744322457,0.26006302,708.4,707.3,1.05843221]
[1735744323158,0.26006302,708.4,707.29,1.05843221]
[1735744324554,0.26006302,708.4,707.25,1.05843221]
[1735744324761,0.26007523,708.39,707.25,1.05843221]
[1735744324955,0.26007523,708.38,707.25,1.05843221]
[1735744325154,0.26007523,708.37,707.25,1.05843221]
[1735744325361,0.26007539,708.36,707.26,1.05843221]
[1735744325559,0.26007539,708.35,707.26,1.05843221]
[1735744325759,0.26007539,708.34,707.26,1.05843221]
[1735744326063,1.04199792,708.4,707.26,1.05843221]
[1735744326257,0.26007644,708.39,707.26,1.05843221]
[1735744326677,0.26007644,708.39,707.25,1.05843221]
[1735744327864,1.04199792,708.27,707.26,1.05843221]
[1735744328060,0.26007644,708.26,707.26,1.05843221]
[1735744329061,1.30207436,708.26,707.22,1.05843221]
[1735744329268,0.26007644,708.25,707.22,1.05843221]
[1735744329964,0.26013574,708.24,707.22,1.05843221]
[1735744330166,0.26013574,708.23,707.22,1.05843221]
[1735744330364,1.30213366,708.22,707.12,1.05843221]
[1735744330567,0.26013574,708.21,707.12,1.05843221]
[1735744331762,0.26013574,708.21,707.11,1.05843221]
[1735744332069,0.26013574,708.2,707.11,1.05843221]
[1735744332270,0.26013574,708.19,707.11,1.05843221]
[1735744332468,1.04199792,708.23,707.11,1.05843221]
[1735744332671,0.26013857,708.22,707.09,1.05843221]
[1735744332970,0.26013857,708.21,707.09,1.05843221]
[1735744333164,1.04199792,708.24,707.09,1.05843221]
[1735744333368,0.26013845,708.23,707.09,1.05843221]
[1735744333963,0.26013845,708.23,707.08,1.05843221]
[1735744334165,0.26013845,708.22,707.08,1.05843221]
[1735744334366,0.26013845,708.21,707.08,1.05843221]
[1735744334573,0.26013845,708.2,707.08,1.05843221]
[1735744334770,0.26013845,708.19,707.08,1.05843221]
[1735744334971,0.26013845,708.18,707.08,1.05843221]
[1735744335166,1.04199792,708.26,707.08,1.05843221]
[1735744335371,0.2601339,708.25,707.08,1.05843221]
[1735744336171,0.2601339,708.25,707.07,1.05843221]
[1735744337167,0.2601339,708.25,707.0,0.28288543]
[1735744337168,0.2601339,708.25,707.06,1.05843221]
[1735744337871,0.26013922,708.24,707.06,1.05843221]
[1735744338072,0.26013922,708.23,707.06,1.05843221]
[1735744338269,0.26013922,708.22,707.06,1.05843221]
[1735744338472,0.26013922,708.21,707.06,1.05843221]
[1735744338773,0.26013922,708.2,707.06,1.05843221]
[1735744339072,0.26013922,708.19,707.06,1.05843221]
[1735744339271,0.26013922,708.18,707.06,1.05843221]
[1735744339570,0.26013922,708.17,707.06,1.05843221]
[1735744339772,0.26013922,708.16,707.06,1.05843221]
[1735744339970,1.47560273,708.19,707.0,0.28288543]
[1735744339971,0.26013922,708.15,707.0,1.34131764]
[1735744340169,0.26013922,708.14,707.0,1.34131764]
[1735744340365,0.26013922,708.18,707.0,1.34131764]
[1735744340566,0.26013922,708.17,707.0,1.34131764]
[1735744340765,0.26013922,708.16,707.0,1.34131764]
[1735744340971,0.26013922,708.15,707.0,1.34131764]
[1735744341172,0.26015951,708.14,707.0,0.28288543]
[1735744341372,0.26015951,708.13,707.0,0.28288543]
[1735744341568,1.47560273,708.19,707.0,0.28288543]
[1735744341769,0.26015687,708.18,707.0,0.28288543]
[1735744343373,0.26016586,708.17,707.0,0.28288543]
[1735744343676,0.26016586,708.16,707.0,0.28288543]
[1735744343875,0.26016586,708.15,707.0,0.28288543]
[1735744344079,0.26016586,708.14,707.0,0.28288543]
[1735744344369,0.26016586,708.13,707.0,0.28288543]
[1735744344575,0.26016586,708.12,707.0,0.28288543]
[1735744344772,0.26016586,708.11,707.0,0.28288543]
[1735744344970,1.47560273,708.19,707.0,0.28288543]
[1735744345171,0.26015045,708.18,707.0,0.28288543]
[1735744345670,1.47560273,708.19,707.0,0.28288543]
[1735744345875,0.26014972,708.18,707.0,0.28288543]
[1735744348576,1.47560273,708.19,707.0,0.28288543]